Cogmind - Beta 10.2 @@@ ROGUE MODE // 2021.12.14 @ 14:13:13 Player: Cookedpoo Result: Self-destructed Performance ------------- Evolutions (5) 2500 Regions Visited (16) 3200 Robots Destroyed (139) 695 Value Destroyed (4553) 4553 Prototype IDs (47) 940 Alien Tech Used (0) 0 Bonus (1874) 1874 TOTAL SCORE: 13762 Bonus ------- High Alert Combat Kills 31 Follower Combat Kills 1147 Aligned with FarCom 300 Met Data Miner 300 Met Imprinter 300 Friendly Fire -204 Cogmind --------- Core Integrity 1000/1000 Matter 280/300 Energy 300/300 System Corruption 0% Temperature Cool (0) Movement Rolling (190) Ox11 Location -5/Factory Parts ------- > --- POWER (1) -------- Angular Momentum Engine > --- PROPULSION (3) --- Carbon-fiber Leg Carbon-fiber Leg Wheel > --- UTILITY (11) ----- Improved Heat Sink Medium Storage Unit High-capacity Storage Unit High-capacity Storage Unit Advanced Signal Interpreter Advanced Targeting Computer Core Analyzer Recoil Stabilizer Improved Light Armor Plating Improved Light Armor Plating > --- WEAPON (2) ------- Hypervelocity Gauss Cannon Hypervelocity Gauss Cannon > --- INVENTORY (24) --- Light Treads Matter Compressor (250) Experimental Sensor Array Advanced Signal Interpreter Long-range Terrain Scanner Improved Target Analyzer Makeshift Transmission Jammer Advanced ECM Suite Improved Light Armor Plating Improved Heavy Armor Plating Mobile Refinery Mk. CCLXVII Sensor Drone Bay (20/20) Hacking Drone Bay (1/1) PSU Rigger Lightning Gun Gatling Laser Mini Assault Cannon Heavy Flak Cannon Missile Launcher Heavy Rocket Launcher CR-A16's Pointy Stick Dirty Bomb Trap Dirty Bomb Trap Peak State ------------ > --- POWER ------------ Angular Momentum Engine > --- PROPULSION ------- Carbon-fiber Leg Carbon-fiber Leg Carbon-fiber Leg > --- UTILITY ---------- Improved Heat Sink Medium Storage Unit High-capacity Storage Unit High-capacity Storage Unit Experimental Sensor Array Advanced Signal Interpreter Advanced Targeting Computer Core Analyzer Makeshift System Shield > --- WEAPON ----------- Hypervelocity Gauss Cannon Hypervelocity Gauss Cannon > --- INVENTORY -------- Light Treads Wheel Matter Compressor Advanced Signal Interpreter Long-range Terrain Scanner Improved Target Analyzer Makeshift Transmission Jammer Improved Light Armor Plating Improved Light Armor Plating Improved Heavy Armor Plating Mobile Refinery Mk. CCLXVII Sensor Drone Bay Hacking Drone Bay PSU Rigger Gatling Laser Mini Assault Cannon Heavy Flak Cannon Missile Launcher CR-A16's Pointy Stick Dirty Bomb Trap Dirty Bomb Trap [Rating: 62] Favorites ----------- Power Light Nuclear Core Engine Ion Engine Power Core Light Nuclear Core Propulsion Compact Wheel Treads Medium Treads Leg Carbon-fiber Leg Wheel Compact Wheel Utility High-capacity Storage Unit Device Experimental Sensor Array Storage High-capacity Storage Unit Processor Core Analyzer Hackware Makeshift System Shield Protection Hardened Medium Armor Plating Weapon Gauss Cannon Energy Gun Medium Laser Energy Cannon Improved EM Pulse Cannon Ballistic Gun Assault Rifle Ballistic Cannon Gauss Cannon Launcher Missile Launcher Special Melee Weapon Datajack Build | -11 -10 -10 -10 -9 -8 -7 -7 -7 -7 -6 -6 -6 -6 -6 -5 -5 ------- Run | Scr Mat Min Exi Min Mat Fac Low Low Zio Pro Fac Low Low Dat Pro Fac Slots Evolved 10 | . . . . . 4 2 . . . . 2 . . . . 2 Power . | . . . . . . . . . . . . . . . . . Propulsion 1 | . . . . . . 1 . . . . . . . . . . Utility 9 | . . . . . 4 1 . . . . 2 . . . . 2 Weapon . | . . . . . . . . . . . . . . . . . Parts Attached 217 | 6 30 6 3 1 62 26 9 10 5 3 24 13 15 . 2 2 Power 13 | 1 2 . . . 3 1 . 1 1 1 2 . 1 . . . Engine 7 | 1 2 . . . 1 . . . 1 . 1 . 1 . . . Core 6 | . . . . . 2 1 . 1 . 1 1 . . . . . Reactor . | . . . . . . . . . . . . . . . . . Propulsion 51 | 2 11 3 1 1 11 4 3 . 1 . 8 1 4 . 1 . Treads 25 | 1 5 2 . 1 6 2 3 . 1 . 2 1 1 . . . Leg 3 | . . . . . . . . . . . . . 3 . . . Wheel 23 | 1 6 1 1 . 5 2 . . . . 6 . . . 1 . Hover . | . . . . . . . . . . . . . . . . . Flight . | . . . . . . . . . . . . . . . . . Utility 88 | 1 5 . 2 . 37 10 4 3 3 2 8 6 4 . 1 2 Device 59 | . . . . . 29 7 3 1 3 2 4 6 3 . . 1 Storage 11 | 1 5 . 2 . 2 1 . . . . . . . . . . Processor 5 | . . . . . 2 1 1 . . . 1 . . . . . Hackware 3 | . . . . . 1 . . . . . 2 . . . . . Protection 10 | . . . . . 3 1 . 2 . . 1 . 1 . 1 1 Artifact . | . . . . . . . . . . . . . . . . . Weapon 65 | 2 12 3 . . 11 11 2 6 . . 6 6 6 . . . Energy Gun 19 | 2 4 2 . . 8 2 . . . . 1 . . . . . Energy Cannon 15 | . . . . . 1 3 . 1 . . 5 4 1 . . . Ballistic Gun 4 | . 4 . . . . . . . . . . . . . . . Ballistic Cannon 14 | . 1 . . . . 4 1 3 . . . 1 4 . . . Launcher 11 | . 3 1 . . 2 1 1 1 . . . 1 1 . . . Special Weapon . | . . . . . . . . . . . . . . . . . Impact Weapon . | . . . . . . . . . . . . . . . . . Slashing Weapon . | . . . . . . . . . . . . . . . . . Piercing Weapon . | . . . . . . . . . . . . . . . . . Special Melee Weapon 2 | . . . . . . 1 . 1 . . . . . . . . Unidentified Prototypes 8 | . . . . . 4 . . . 2 . 1 1 . . . . Parts Lost 23 | . 5 . . . 2 . 1 3 . . 2 . 9 . 1 . Power 4 | . 1 . . . 1 . . 1 . . . . 1 . . . Propulsion 8 | . . . . . 1 . 1 . . . 1 . 4 . 1 . Utility 2 | . . . . . . . . 1 . . . . 1 . . . Weapon 9 | . 4 . . . . . . 1 . . 1 . 3 . . . Highest Loss Streak 9 | . 2 . . . 1 . 1 2 . . 1 . 9 . 1 . Average Slot Usage (%) 99 | . 98 100 100 100 99 99 98 98 100 100 98 99 96 100 99 89 Engine 4 | . 14 14 14 14 5 . . . 5 2 . . 5 6 6 5 Core 3 | . . . . . 3 7 7 6 1 4 5 6 . . . . Treads 9 | . 13 14 14 14 10 7 8 15 15 15 6 5 . . . . Leg 1 | . . . . . . . . . . . . . 17 20 16 11 Wheel 10 | . 14 13 14 14 7 14 12 7 7 7 12 13 . . 2 5 Device 5 | . . . . . 8 9 6 5 7 7 6 5 10 13 13 8 Storage 22 | . 26 28 28 28 18 20 23 23 23 23 20 20 20 20 20 17 Processor 12 | . . . . . 8 11 22 15 15 15 19 20 20 20 20 17 Hackware 4 | . . . . . 8 1 . . . . 11 13 6 6 2 . Protection 3 | . . . . . 8 7 . 8 7 7 1 . 1 . 3 9 Energy Gun 7 | . 15 27 28 28 12 1 . . . . . . . . . . Energy Cannon 4 | . . . . . 5 5 . 6 7 7 8 12 1 . . . Ballistic Cannon 5 | . 5 . . . . 7 14 7 7 7 3 . 11 13 13 11 Naked Turns . | . . . . . . . . . . . . . . . . . Heaviest Build 113 | 11 60 58 74 74 87 98 97 109 105 105 109 102 107 107 110 113 Greatest Support 50 | 10 40 40 16 16 43 41 32 16 16 16 50 26 45 45 45 10 Greatest Overweight (x) 35 | 1 5 5 7 4 5 5 5 6 6 6 6 3 35 2 10 11 Average Overweight (x) 3 | . 2 3 5 4 4 2 3 5 6 6 3 3 2 2 5 10 Largest Inventory Capacity 24 | 6 18 18 20 20 20 24 24 24 24 24 24 24 24 24 24 24 Average Capacity 22 | 5 16 18 18 20 20 22 24 24 24 24 24 24 24 24 24 24 Most Carried 24 | 4 18 18 20 20 20 24 24 24 24 24 24 24 24 23 23 24 Average Carried 20 | 2 13 17 18 19 19 21 23 21 23 24 23 23 19 23 22 24 Final Capacity 24 | 6 18 18 20 20 20 24 24 24 24 24 24 24 24 24 24 24 Final Carried 24 | 4 18 18 20 20 19 24 22 24 24 24 24 24 23 23 23 24 Class Distribution -------------------- 41% | Hauler-Mutant 40% | Trapper-Mutant 16% | Mutant Dominant Class ---------------- Mutant | -10/Materials Mutant | -10/Mines Mutant | -10/Exiles Hauler-Mutant | -9/Mines Hauler-Mutant | -8/Materials Hauler-Mutant | -7/Factory Trapper-Mutant | -7/Lower Caves Trapper-Mutant | -7/Lower Caves Trapper-Mutant | -7/Zion Trapper-Mutant | -6/Proximity Caves Hauler-Mutant | -6/Factory Hauler-Mutant | -6/Lower Caves Hauler-Mutant | -6/Lower Caves Hauler-Mutant | -6/Data Miner Hauler-Mutant | -5/Proximity Caves Scavenger-Mutant | -5/Factory Resources | -11 -10 -10 -10 -9 -8 -7 -7 -7 -7 -6 -6 -6 -6 -6 -5 -5 ----------- Run | Scr Mat Min Exi Min Mat Fac Low Low Zio Pro Fac Low Low Dat Pro Fac Matter Collected 4025 | 260 351 137 . 40 698 575 391 273 50 316 258 130 275 . 271 . Remotely . | . . . . . . . . . . . . . . . . . Salvage Created 5254 | 59 743 244 . 89 1561 560 144 439 . 128 652 121 329 . 185 . Parts 238 | 3 45 11 . 6 66 23 10 11 . 5 33 6 11 . 8 . Haulers Intercepted 7 | . 2 . . . 4 1 . . . . . . . . . . Recyclers Shooed 2 | . . 1 . 1 . . . . . . . . . . . . Parts Field Recycled . | . . . . . . . . . . . . . . . . . Retrieved Matter . | . . . . . . . . . . . . . . . . . Parts Self-Destructed 61 | . . . . . . . 9 10 2 17 . 5 2 . 16 . Prevented 17 | . . . . . . . 5 3 . 4 . 4 1 . . . Kills | -11 -10 -10 -10 -9 -8 -7 -7 -7 -7 -6 -6 -6 -6 -6 -5 -5 ------- Run | Scr Mat Min Exi Min Mat Fac Low Low Zio Pro Fac Low Low Dat Pro Fac Combat Hostiles Destroyed 95 | . 14 4 . . 25 10 6 12 . 2 8 2 8 . 4 . Guns 33 | . 9 3 . . 19 . . . . . 2 . . . . . Cannons 34 | . . . . . 5 6 1 5 . 1 5 2 5 . 4 . AOE 24 | . 5 1 . . 1 3 4 7 . . . . 3 . . . Classes Destroyed 16 | 1 6 . . 1 4 1 1 1 . . . 1 . . . . Worker 10 | . 2 3 . . 3 1 . . . . 1 . . . . . Builder 3 | . . . . . 1 1 . . . . 1 . . . . . Tunneler 1 | . . . . 1 . . . . . . . . . . . . Hauler 7 | . 2 . . . 4 1 . . . . . . . . . . Recycler 10 | 1 2 1 . 1 2 2 . . . . 1 . . . . . Minesweeper 1 | . . . . . . . 1 . . . . . . . . . Operator 5 | . 2 . . . 2 . . . . . 1 . . . . . Watcher 6 | . 1 . . . 2 1 . . . . 2 . . . . . Swarmer 13 | . 3 . . . 2 2 4 2 . . . . . . . . Grunt 47 | . 11 4 . . 15 3 1 5 . 2 3 . 3 . . . Brawler 5 | . . . . . 1 2 . 1 . . . . . . 1 . Duelist 7 | . . . . . 1 . 1 1 . . . 1 1 . 2 . Protector 1 | . . . . . . . . 1 . . . . . . . . Sentry 12 | . . . . . 6 2 . 2 . . 1 . 1 . . . Hunter 2 | . . . . . . . . . . . . 1 . . 1 . Programmer 5 | . . . . . . 1 . . . . 4 . . . . . Thug 3 | . . . . . . . . . . . . . 3 . . . Butcher 1 | . . . . . . . . . . 1 . . . . . . Best Kill Streak 8 | 1 5 2 . 1 4 3 4 8 . 1 3 1 6 . 3 . Combat Bots Only 8 | . 3 2 . . 3 3 4 8 . 1 3 1 6 . 3 . Max Kills in Single Turn 4 | 1 4 1 . 1 3 3 3 3 . 1 1 1 2 . 1 . Gunslinging . | . . . . . . . . . . . . . . . . . Exploded 3 | . 3 1 . . 1 3 3 3 . . . . 2 . . . Melee . | . . . . . . . . . . . . . . . . . Uniques/NPCs Destroyed . | . . . . . . . . . . . . . . . . . Combat | -11 -10 -10 -10 -9 -8 -7 -7 -7 -7 -6 -6 -6 -6 -6 -5 -5 -------- Run | Scr Mat Min Exi Min Mat Fac Low Low Zio Pro Fac Low Low Dat Pro Fac Damage Taken 5764 | . 713 262 . . 1024 748 340 391 . 45 288 297 1358 . 298 . Core 722 | . 71 39 . . 123 157 89 25 . . 27 . 191 . . . Absorbed by Shields . | . . . . . . . . . . . . . . . . . Core Remaining (%) 73 | 100 . . . 56 77 . . . . 61 . . . . 74 . Volleys Fired 421 | 2 67 28 . 4 89 48 5 23 . 6 49 58 26 . 16 . Largest 2 | 2 2 2 . 2 2 2 2 2 . 2 2 2 2 . 2 . Hottest 180 | 80 100 115 . 115 136 140 96 117 . 117 180 180 180 . 122 . Shots Fired 762 | 4 117 53 . 8 177 87 8 36 . 10 75 116 39 . 32 . Gun 308 | 4 102 50 . 8 128 8 . . . . 8 . . . . . Cannon 434 | . 12 . . . 48 78 6 32 . 10 67 116 33 . 32 . Launcher 20 | . 3 3 . . 1 1 2 4 . . . . 6 . . . Special . | . . . . . . . . . . . . . . . . . Kinetic 160 | . 25 . . . . 56 6 21 . 6 3 . 11 . 32 . Thermal 431 | . 32 50 . 8 152 24 . . . . 35 116 14 . . . Explosive 20 | . 3 3 . . 1 1 2 4 . . . . 6 . . . Electromagnetic 151 | 4 57 . . . 24 6 . 11 . 4 37 . 8 . . . Robot Hit Streak 21 | 1 10 7 . 2 21 10 9 13 . 7 14 4 10 . 7 . Robot Miss Streak 6 | 1 4 3 . 4 6 2 . 2 . 1 1 1 4 . 1 . Penetration Max 2 | . . . . . . 1 . . . . 1 . . . 2 . Secondary Targets 3 | . 1 1 . . 1 . . . . . . . . . . . Max Gunslinging Chain 1 | . 1 1 . . 1 . . . . . . . . . . . Shots Hit Robots 455 | 2 67 34 . 3 142 71 6 26 . 8 40 3 29 . 24 . Core Hits 283 | 1 34 16 . 2 116 23 6 23 . 5 24 3 20 . 10 . Critical Hits 27 | . . . . . . 4 2 . . . 2 1 3 . 15 . Critical Kills 5 | . . . . . . . 1 . . . . 1 1 . 2 . Critical Parts Destroyed 15 | . . . . . . 4 1 . . . 2 . 1 . 7 . Melee Attacks 6 | . . . . . . 4 . 2 . . . . . . . . Impact . | . . . . . . . . . . . . . . . . . Slashing . | . . . . . . . . . . . . . . . . . Piercing . | . . . . . . . . . . . . . . . . . Sneak Attacks 6 | . . . . . . 4 . 2 . . . . . . . . Combat Hostiles 4 | . . . . . . 4 . . . . . . . . . . Follow-up Attacks . | . . . . . . . . . . . . . . . . . Damage Inflicted 12228 | 28 1450 582 . 41 2869 2110 399 1388 . 243 1324 131 1224 . 439 . Guns 3502 | 28 871 461 . 41 1810 143 . . . . 148 . . . . . Cannons 6040 | . 204 . . . 779 1700 141 560 . 243 1129 131 714 . 439 . Explosions 2683 | . 372 121 . . 280 267 258 828 . . 47 . 510 . . . Melee . | . . . . . . . . . . . . . . . . . Ramming 3 | . 3 . . . . . . . . . . . . . . . Kinetic 2834 | . 323 . . . . 1252 141 357 . 127 103 . 92 . 439 . Thermal 4834 | . 464 461 . 41 2360 493 . . . . 505 131 379 . . . Explosive 2378 | . 148 121 . . 246 267 258 828 . . . . 510 . . . Electromagnetic 2179 | 28 512 . . . 263 98 . 203 . 116 716 . 243 . . . Impact . | . . . . . . . . . . . . . . . . . Slashing . | . . . . . . . . . . . . . . . . . Piercing . | . . . . . . . . . . . . . . . . . Highest Corruption 3 | . . . . . . 2 3 . . . . 1 1 1 1 . Average Corruption 1 | . . . . . . 1 1 . . . . 1 1 1 1 . Corruption Purged 5 | . . . . . . 2 3 . . . . . . . . . Effects 17 | . . . . . . 3 4 . . . . 8 . . 2 . Message Errors 6 | . . . . . . 2 . . . . . 3 . . 1 . Heat Flow Errors 1 | . . . . . . . 1 . . . . . . . . . Energy Discharges 3 | . . . . . . 1 1 . . . . . . . 1 . Data Loss (minor) 4 | . . . . . . . 2 . . . . 2 . . . . Targeting Errors 3 | . . . . . . . . . . . . 3 . . . . Overload Shots . | . . . . . . . . . . . . . . . . . Overflow Damage 327 | . 16 . . . 106 78 . 40 . . 53 . 34 . . . Projectiles 186 | . . . . . 48 66 . . . . 53 . 19 . . . Explosions 141 | . 16 . . . 58 12 . 40 . . . . 15 . . . Melee . | . . . . . . . . . . . . . . . . . Knockbacks 26 | . 5 . . . . 10 2 5 . 2 . . 2 . . . Impact . | . . . . . . . . . . . . . . . . . Kinetic 23 | . 4 . . . . 9 2 4 . 2 . . 2 . . . Secondary 3 | . 1 . . . . 1 . 1 . . . . . . . . Self-Inflicted Damage 31 | . 1 . . . . . . . . . . . 30 . . . Shots 1 | . . . . . . . . . . . . . 1 . . . Rammed 2 | . 1 . . . 1 . . . . . . . . . . . Targets Rammed 2 | . 1 . . . 1 . . . . . . . . . . . Kicked . | . . . . . . . . . . . . . . . . . Crushed . | . . . . . . . . . . . . . . . . . Highest Temperature 321 | 36 305 321 . 162 120 159 270 315 . 51 216 227 255 . 17 . Average Temperature 79 | 20 85 125 . 70 29 58 81 127 . 21 51 86 144 . 10 . Received Heat Transfer 1992 | . 339 156 . . 549 99 63 60 . 9 75 36 558 . 48 . Effects 3 | . 2 . . . . . . 1 . . . . . . . . Energy Bleed 1 | . . . . . . . . 1 . . . . . . . . Interference 2 | . 2 . . . . . . . . . . . . . . . Siege Activations . | . . . . . . . . . . . . . . . . . Robots Corrupted 2 | . . . . . . . . . . 1 1 . . . . . Combat Hostiles 2 | . . . . . . . . . . 1 1 . . . . . Parts Fried 10 | . 1 . . . 3 3 . 1 . . 1 . 1 . . . Impact Corruptions . | . . . . . . . . . . . . . . . . . Robots Melted 1 | . . . . . . 1 . . . . . . . . . . Combat Hostiles 1 | . . . . . . 1 . . . . . . . . . . Parts Melted 17 | . . . . . 9 1 . . . 2 5 . . . . . Heat Transferred 7890 | . 903 1295 . 111 3626 855 . . . . 700 150 250 . . . Parts Sabotaged . | . . . . . . . . . . . . . . . . . Parts Stolen . | . . . . . . . . . . . . . . . . . Parts Stripped . | . . . . . . . . . . . . . . . . . Power Chain Reactions 4 | . 2 . . . 1 . . . . . 1 . . . . . Missiles Intercepted . | . . . . . . . . . . . . . . . . . Alert | -11 -10 -10 -10 -9 -8 -7 -7 -7 -7 -6 -6 -6 -6 -6 -5 -5 ------- Run | Scr Mat Min Exi Min Mat Fac Low Low Zio Pro Fac Low Low Dat Pro Fac Peak Influence 541 | 5 305 161 . 10 541 338 . . . . 266 . . . . 14 Initial 229 | . 3 13 . . 3 229 . . . . 152 . . . . 14 Average 128 | 1 104 54 . 2 204 225 . . . . 90 . . . . 14 Maximum Alert Level 2 | . 1 . . . 2 1 . . . . 1 . . . . . Low Security (%) 75 | 100 83 100 . 100 57 36 . . . . 91 . . . . 100 Level 1 23 | . 16 . . . 38 63 . . . . 8 . . . . . Level 2 1 | . . . . . 3 . . . . . . . . . . . Level 3 . | . . . . . . . . . . . . . . . . . Level 4 . | . . . . . . . . . . . . . . . . . Level 5 . | . . . . . . . . . . . . . . . . . High Security . | . . . . . . . . . . . . . . . . . Max Security . | . . . . . . . . . . . . . . . . . Squads Dispatched 20 | . 4 . . . 6 3 . 1 . . 6 . . . . . Investigation 1 | . 1 . . . . . . . . . . . . . . . Extermination 6 | . . . . . . 2 . . . . 4 . . . . . Reinforcement 12 | . 3 . . . 6 1 . . . . 2 . . . . . Assault 1 | . . . . . . . . 1 . . . . . . . . Garrison . | . . . . . . . . . . . . . . . . . Intercept . | . . . . . . . . . . . . . . . . . Construction Impeded . | . . . . . . . . . . . . . . . . . Haulers Reinforced 1 | . . . . . . 1 . . . . . . . . . . Stealth | -11 -10 -10 -10 -9 -8 -7 -7 -7 -7 -6 -6 -6 -6 -6 -5 -5 --------- Run | Scr Mat Min Exi Min Mat Fac Low Low Zio Pro Fac Low Low Dat Pro Fac Distress Signals 13 | . 3 . . . 6 2 . . . . 2 . . . . . Communications Jammed 5 | . . . . . . . . . . . 5 . . . . . Distress Signals 5 | . . . . . . . . . . . 5 . . . . . Times Spotted 218 | . 31 9 . . 63 24 11 20 . 12 28 5 9 . 6 . Peak Tracking Total 9 | . 4 2 . . 6 5 4 9 . 4 3 4 4 . 5 . Tactical Retreats 27 | . 6 1 . . 10 3 1 2 . . 2 2 . . . . Traps | -11 -10 -10 -10 -9 -8 -7 -7 -7 -7 -6 -6 -6 -6 -6 -5 -5 ------- Run | Scr Mat Min Exi Min Mat Fac Low Low Zio Pro Fac Low Low Dat Pro Fac Traps Triggered 6 | . 4 . . . . 2 . . . . . . . . . . Indirectly . | . . . . . . . . . . . . . . . . . Trap Hack Attempts . | . . . . . . . . . . . . . . . . . Triggered . | . . . . . . . . . . . . . . . . . Disarmed . | . . . . . . . . . . . . . . . . . Reprogrammed . | . . . . . . . . . . . . . . . . . Reused 5 | . . . . . . . 3 . . . 1 1 . . . . Traps Extracted . | . . . . . . . . . . . . . . . . . Installed 8 | . . . . . . . 5 . . . 2 1 . . . . Triggered 12 | . 1 . . . . . 3 . . 6 1 1 . . . . Power Sources Rigged 19 | . . . . . 15 3 . . . . 1 . . . . . Exploded 14 | . . . . . 7 4 2 . . . 1 . . . . . Machines | -11 -10 -10 -10 -9 -8 -7 -7 -7 -7 -6 -6 -6 -6 -6 -5 -5 ---------- Run | Scr Mat Min Exi Min Mat Fac Low Low Zio Pro Fac Low Low Dat Pro Fac Machines Disabled 6 | . 2 1 . . 2 . . 1 . . . . . . . . Max in Single Turn 2 | . 1 1 . . 2 . . 1 . . . . . . . . Garrison Access 1 | . . . . . 1 . . . . . . . . . . . Machines Sabotaged . | . . . . . . . . . . . . . . . . . Garrisons Compromised . | . . . . . . . . . . . . . . . . . Overloaded Fab Kills . | . . . . . . . . . . . . . . . . . Fab Network Shutdowns . | . . . . . . . . . . . . . . . . . Hacking | -11 -10 -10 -10 -9 -8 -7 -7 -7 -7 -6 -6 -6 -6 -6 -5 -5 --------- Run | Scr Mat Min Exi Min Mat Fac Low Low Zio Pro Fac Low Low Dat Pro Fac Machines Accessed 35 | . 8 2 2 1 8 3 1 . 1 . 4 1 . 4 . . Terminals 15 | . 5 1 . 1 4 3 . . . . 1 . . . . . Fabricators 1 | . . . . . . . . . . . 1 . . . . . Repair Stations 2 | . 1 . . . . . . . . . 1 . . . . . Recycling Units 3 | . 2 . . . 1 . . . . . . . . . . . Scanalyzers 3 | . . . . . 2 . . . . . 1 . . . . . Garrison Access 1 | . . . . . 1 . . . . . . . . . . . Total Hacks 117 | . 22 4 2 2 34 5 1 . 5 . 15 1 . 26 . . Successful 90 | . 12 2 2 1 31 2 1 . 5 . 7 1 . 26 . . Failed 27 | . 10 2 . 1 3 3 . . . . 8 . . . . . Catastrophic 4 | . 1 1 . . . 2 . . . . . . . . . . Database Lockouts . | . . . . . . . . . . . . . . . . . Manual 23 | . 8 3 1 . 7 3 . . . . 1 . . . . . Terminals 35 | . 14 3 . 2 9 5 . . . . 2 . . . . . Fabricators 6 | . . . . . . . . . . . 6 . . . . . Repair Stations 7 | . 4 . . . . . . . . . 3 . . . . . Recycling Units 5 | . 4 . . . 1 . . . . . . . . . . . Scanalyzers 27 | . . . . . 23 . . . . . 4 . . . . . Garrison Access 1 | . . . . . 1 . . . . . . . . . . . Terminal Hacks 48 | . 6 2 2 1 3 . 1 . 5 . 1 1 . 26 . . Record 12 | . . . 1 . . . . . . . . . . 11 . . Part Schematic 14 | . . 1 . . . . . . 5 . . . . 8 . . Robot Schematic 4 | . . . . . . . . . . . . . . 4 . . Robot Analysis 3 | . 2 . . . 1 . . . . . . . . . . . Prototype ID Bank 5 | . . . . . 2 . . . . . . . . 3 . . Open Door 3 | . . 1 . . . . 1 . . . . 1 . . . . Unreport Threat 2 | . 2 . . . . . . . . . . . . . . . Locate Traps 2 | . 1 . . . . . . . . . 1 . . . . . Zone Layout 2 | . 1 . . 1 . . . . . . . . . . . . EX-Prototype ID Bank 1 | . . . 1 . . . . . . . . . . . . . Fabricator Hacks 2 | . . . . . . . . . . . 2 . . . . . Load Schematic 1 | . . . . . . . . . . . 1 . . . . . Build 1 | . . . . . . . . . . . 1 . . . . . Repair Station Hacks 6 | . 4 . . . . . . . . . 2 . . . . . Scan Component 3 | . 2 . . . . . . . . . 1 . . . . . Repair 3 | . 2 . . . . . . . . . 1 . . . . . Recycling Unit Hacks 3 | . 2 . . . 1 . . . . . . . . . . . Retrieve Components 3 | . 2 . . . 1 . . . . . . . . . . . Scanalyzer 23 | . . . . . 22 . . . . . 1 . . . . . Insert Component 10 | . . . . . 9 . . . . . 1 . . . . . Analyze 13 | . . . . . 13 . . . . . . . . . . . Garrison Access Hacks 1 | . . . . . 1 . . . . . . . . . . . Seal Access 1 | . . . . . 1 . . . . . . . . . . . Unauthorized Hacks 7 | . . . . . 4 2 . . . . 1 . . . . . Terminals 6 | . . . . . 4 2 . . . . . . . . . . Botnet 3 | . . . . . 2 1 . . . . . . . . . . Disrupt 1 | . . . . . 1 . . . . . . . . . . . Operators 2 | . . . . . 1 1 . . . . . . . . . . Fabricators 1 | . . . . . . . . . . . 1 . . . . . Siphon 1 | . . . . . . . . . . . 1 . . . . . Repair Stations . | . . . . . . . . . . . . . . . . . Recycling Units . | . . . . . . . . . . . . . . . . . Scanalyzers . | . . . . . . . . . . . . . . . . . Garrison Access . | . . . . . . . . . . . . . . . . . Data Cores Recovered . | . . . . . . . . . . . . . . . . . Used . | . . . . . . . . . . . . . . . . . Hacking Detections 23 | . 7 1 . 1 7 3 . . . . 4 . . . . . Full Trace Events . | . . . . . . . . . . . . . . . . . Feedback Events . | . . . . . . . . . . . . . . . . . Feedback Blocked . | . . . . . . . . . . . . . . . . . Robot Schematics Acquired 4 | . . . . . . . . . . . . . . 4 . . Robots Built . | . . . . . . . . . . . . . . . . . Matter . | . . . . . . . . . . . . . . . . . Time . | . . . . . . . . . . . . . . . . . Total Robot Build Rating . | . . . . . . . . . . . . . . . . . Part Schematics Acquired 23 | . . 1 . . 9 . . . 5 . . . . 8 . . Parts Built 1 | . . . . . . . . . . . 1 . . . . . Matter 213 | . . . . . . . . . . . 213 . . . . . Time 76 | . . . . . . . . . . . 76 . . . . . Total Part Build Rating 5 | . . . . . . . . . . . 5 . . . . . Parts Repaired 2 | . 2 . . . . . . . . . . . . . . . Time 132 | . 52 . . . . . . . . . 80 . . . . . Parts Recycled . | . . . . . . . . . . . . . . . . . Recycled Matter . | . . . . . . . . . . . . . . . . . Retrieved Matter . | . . . . . . . . . . . . . . . . . Retrieved Components 13 | . 4 . . . 9 . . . . . . . . . . . Parts Scanalyzed 10 | . . . . . 9 . . . . . 1 . . . . . Part Schematics Acquired 9 | . . . . . 9 . . . . . . . . . . . Parts Damaged . | . . . . . . . . . . . . . . . . . Bothacking | -11 -10 -10 -10 -9 -8 -7 -7 -7 -7 -6 -6 -6 -6 -6 -5 -5 ------------ Run | Scr Mat Min Exi Min Mat Fac Low Low Zio Pro Fac Low Low Dat Pro Fac Used RIF Installer . | . . . . . . . . . . . . . . . . . Robots Hacked . | . . . . . . . . . . . . . . . . . Non-combat . | . . . . . . . . . . . . . . . . . Combat . | . . . . . . . . . . . . . . . . . Robot Hacks Applied . | . . . . . . . . . . . . . . . . . Relay Couplers Released . | . . . . . . . . . . . . . . . . . Robots Rewired 4 | . . . . . . 1 . 2 . . . . . . 1 . Allies Hacked . | . . . . . . . . . . . . . . . . . Hacks Repelled . | . . . . . . . . . . . . . . . . . Allies | -11 -10 -10 -10 -9 -8 -7 -7 -7 -7 -6 -6 -6 -6 -6 -5 -5 -------- Run | Scr Mat Min Exi Min Mat Fac Low Low Zio Pro Fac Low Low Dat Pro Fac Total Allies 20 | . . 5 . . . 1 . 2 10 . . . . . 2 . Largest Group 11 | . . 4 4 2 2 1 . 2 11 11 8 . . . 2 2 Highest-Rated Group 318 | . . 77 77 32 32 16 . 62 318 318 231 . . . 124 124 Highest-Rated Ally 94 | . . 31 31 16 16 16 . 32 32 32 32 . . . 94 94 Total Orders . | . . . . . . . . . . . . . . . . . Ally Attacks 213 | . . 17 . . 31 5 . 25 . 76 39 . . . 20 . Total Damage 4292 | . . 164 . . 353 29 . 757 . 1603 622 . . . 764 . Kills 35 | . . 4 . . 4 1 . 5 . 10 7 . . . 4 . Allies Corrupted . | . . . . . . . . . . . . . . . . . Allies Melted . | . . . . . . . . . . . . . . . . . Intel | -11 -10 -10 -10 -9 -8 -7 -7 -7 -7 -6 -6 -6 -6 -6 -5 -5 ------- Run | Scr Mat Min Exi Min Mat Fac Low Low Zio Pro Fac Low Low Dat Pro Fac Robot Analysis Total 3 | . 2 . . . 1 . . . . . . . . . . . Derelict Logs Recovered 9 | . . 1 . . . . 3 . 3 . . 1 1 . . . Drone Launches . | . . . . . . . . . . . . . . . . . Drone Recoveries . | . . . . . . . . . . . . . . . . . Exploration | -11 -10 -10 -10 -9 -8 -7 -7 -7 -7 -6 -6 -6 -6 -6 -5 -5 ------------- Run | Scr Mat Min Exi Min Mat Fac Low Low Zio Pro Fac Low Low Dat Pro Fac Turns Passed 17514 | 58 1334 1067 714 712 2438 1204 2237 944 1441 571 2178 1242 669 137 493 75 Spaces Moved 9648 | 46 831 578 520 495 1236 761 826 532 891 336 1428 520 294 77 239 38 Core 2 | 1 . . . . . . . . . . . . 1 . . . Treads 1065 | . 122 189 . . 165 . 586 . . . 3 . . . . . Legs 499 | . . . . . . . . . . . . . 291 77 131 . Wheels 8082 | 45 709 389 520 495 1071 761 240 532 891 336 1425 520 2 . 108 38 Hover . | . . . . . . . . . . . . . . . . . Flight . | . . . . . . . . . . . . . . . . . Fastest Speed 50 | 50 90 100 130 140 140 120 120 150 160 160 120 120 120 180 180 180 Average Speed 147 | 85 121 151 135 140 154 123 194 159 160 160 125 120 186 180 181 186 Slowest Speed 1800 | 90 180 200 150 140 200 150 220 160 160 160 192 120 1800 180 210 190 Overloaded Moves . | . . . . . . . . . . . . . . . . . Propulsion Burnouts . | . . . . . . . . . . . . . . . . . Robots Hopped . | . . . . . . . . . . . . . . . . . Cave-ins Triggered . | . . . . . . . . . . . . . . . . . Exploration Rate (%) 58 | 3 99 99 71 73 81 19 80 61 84 62 31 59 46 68 50 1 Regions Visited 16 Branch Regions 11 Pre-discovered Areas 8 | . . 1 1 . . . . . 5 . . . . 1 . . Known Exits Taken 9 | . . . . . . . 1 1 1 1 1 1 1 1 1 . Unknown Exits Taken 7 | 1 1 1 1 1 1 1 . . . . . . . . . . Scrap Searched 22 | . . 1 . 2 . . 7 2 1 4 . 2 2 . 1 . Spaces Dug 121 | . . . . . . . 7 . . . 14 100 . . . . Terrain Destroyed 347 | . 25 31 . . 66 13 12 15 . . 19 112 54 . . . Melee . | . . . . . . . . . . . . . . . . . Projectile 162 | . . . . . 13 9 . 5 . . 19 112 4 . . . AOE 185 | . 25 31 . . 53 4 12 10 . . . . 50 . . . Terrain Rammed . | . . . . . . . . . . . . . . . . . Walls Destroyed . | . . . . . . . . . . . . . . . . . Machines Disabled . | . . . . . . . . . . . . . . . . . Actions | -11 -10 -10 -10 -9 -8 -7 -7 -7 -7 -6 -6 -6 -6 -6 -5 -5 --------- Run | Scr Mat Min Exi Min Mat Fac Low Low Zio Pro Fac Low Low Dat Pro Fac Total 12191 | 57 1037 716 529 509 1595 939 1449 586 906 360 1735 1022 368 76 266 41 Wait 1579 | . 62 100 3 1 110 51 577 13 5 13 191 419 27 . 7 . Move 9632 | 45 830 577 519 494 1235 760 825 531 890 335 1427 519 293 76 238 38 Hop . | . . . . . . . . . . . . . . . . . Pick Up 163 | 4 35 2 2 4 36 25 13 6 3 1 19 5 6 . 2 . Fast Attach 31 | 6 4 . . . 6 3 . . . 1 4 1 4 . . 2 Attach 38 | . 6 . . . 8 4 4 5 1 . 3 1 5 . 1 . Detach 10 | . . . . . 3 3 1 1 . . . 1 . . . 1 Swap 148 | . 20 6 3 1 48 19 5 5 4 2 17 11 6 . 1 . Drop 132 | . 12 3 2 5 44 19 14 . 3 2 21 6 1 . . . Fire 421 | 2 67 28 . 4 89 48 5 23 . 6 49 58 26 . 16 . Melee 6 | . . . . . . 4 . 2 . . . . . . . . Ram 2 | . 1 . . . 1 . . . . . . . . . . . Kick . | . . . . . . . . . . . . . . . . . Crush . | . . . . . . . . . . . . . . . . . Escape Stasis . | . . . . . . . . . . . . . . . . . Rewire 2 | . . . . . . . . . . . 1 . . . 1 . Trap 27 | . . . . . 15 3 5 . . . 3 1 . . . . Miscellaneous . | . . . . . . . . . . . . . . . . . Route ------- -11/Scrapyard -10/Materials (discovered 5 exits: [*Mat x3] / *Min x2) -10/Mines (discovered 3 exits: [*Mat x2] / *Exi) -10/Exiles -9/Mines (discovered 2 exits: *Mat x2) -8/Materials (discovered 2 exits: *Fac x2) -7/Factory -7/Lower Caves -7/Lower Caves -7/Zion -6/Proximity Caves -6/Factory (discovered 3 exits: *Fac / *Low x2) -6/Lower Caves -6/Lower Caves (discovered 2 exits: *Fac / *Dat) -6/Data Miner -5/Proximity Caves -5/Factory History --------- Turn | Location | Event 7 | -11/Scrapyard | Discovered new exit (range 15) 59 | -11/Scrapyard | Entered Materials 262 | -10/Materials | Discovered new exit (range 9) 311 | -10/Materials | Build established: Mutant 430 | -10/Materials | Discovered new exit (range 3) 619 | -10/Materials | Repaired Hcp. Storage Unit 647 | -10/Materials | Repaired Lrg. Storage Unit 669 | -10/Materials | Discovered new exit (range 8) 944 | -10/Materials | Discovered new exit (range 11) 1148 | -10/Materials | Discovered new exit (range 15) 1393 | -10/Materials | Entered Mines 1400 | -10/Mines | Found the Drone Emporium 1400 | -10/Mines | Discovered new exit (range 15) 1412 | -10/Mines | Found Prototype Device 1489 | -10/Mines | Learned location of Storage (-7) 1893 | -10/Mines | Deemed a non-threat by the Exiles lab entrance 1893 | -10/Mines | Discovered new exit (range 5) 2157 | -10/Mines | Assisted by bots powering up and referring to "LRC-V3" 2250 | -10/Mines | Discovered new exit (range 6) 2318 | -10/Mines | Learned 2 Materials zone layouts 2460 | -10/Mines | Entered Exiles 2460 | -10/Exiles | Accompanied by 4 allies 2490 | -10/Exiles | Led the pair of lost Derelicts to a safe place 2492 | -10/Exiles | Met 8R-AWN 2511 | -10/Exiles | Met EX-HEX 2564 | -10/Exiles | Met EX-DEC 2572 | -10/Exiles | Learned location of Zion (-7) 2596 | -10/Exiles | Met EX-BIN 2614 | -10/Exiles | Aligned with FarCom system 2615 | -10/Exiles | Given EX-Vault access code 2648 | -10/Exiles | Opened EX-Vault 2676 | -10/Exiles | Warned to stay clear of 0b10 Research branches 3031 | -10/Exiles | Found PSU Rigger 3156 | -10/Exiles | Discovered new exit (range 14) 3174 | -10/Exiles | Left Exiles lab with PSU Rigger 3174 | -10/Exiles | Entered Mines 3174 | -9/Mines | Accompanied by 2 allies 3195 | -9/Mines | Discovered new exit (range 11) 3205 | -9/Mines | Build established: Hauler-Mutant 3217 | -9/Mines | Discovered new exit (range 4) 3766 | -9/Mines | Found a damaged Exp. Sensor Array with a note attached 3769 | -9/Mines | Found Prototype Device 3886 | -9/Mines | Entered Materials 3886 | -8/Materials | Accompanied by 2 allies 3886 | -8/Materials | Evolved 4 slots: Utility x4 3886 | -8/Materials | Identified Exp. Sensor Array 3887 | -8/Materials | Identified Sensor Drone Bay 4625 | -8/Materials | Discovered new exit (range 7) 5401 | -8/Materials | Discovered new exit (range 15) 5949 | -8/Materials | Build established: Trapper-Mutant 6324 | -8/Materials | Entered Factory 6324 | -7/Factory | Evolved 2 slots: Propulsion x1, Utility x1 6434 | -7/Factory | Discovered new exit (range 15) 6954 | -7/Factory | Build established: Hauler-Mutant 7528 | -7/Factory | Entered Lower Caves 7543 | -7/Lower Caves | Learned Factory terminal intel 8003 | -7/Lower Caves | Build established: Trapper-Mutant 8767 | -7/Lower Caves | Learned Factory trap positions 8771 | -7/Lower Caves | Learned 8 Factory zone layouts 9611 | -7/Lower Caves | Discovered new exit (range 11) 9763 | -7/Lower Caves | Identified exit to Lower Caves 9765 | -7/Lower Caves | Entered another Lower Caves area 9791 | -7/Lower Caves | Attracted the attention of an 0b10 outpost 9823 | -7/Lower Caves | Destroyed 8 combat bots 10581 | -7/Lower Caves | Attracted the attention of an 0b10 checkpoint 10687 | -7/Lower Caves | Discovered new exit (range 11) 10702 | -7/Lower Caves | Identified exit to Zion 10709 | -7/Lower Caves | Entered Zion 10709 | -7/Zion | Accompanied by 1 ally 10852 | -7/Zion | Discovered new exit (range 10) 11017 | -7/Zion | Given the Hacking Drone Bay 11019 | -7/Zion | Found Prototype Device 11224 | -7/Zion | Learned location of Recycling (-7) 11248 | -7/Zion | Learned 4 Factory zone layouts 11292 | -7/Zion | Found CR-A16's Pointy Stick 11352 | -7/Zion | Learned location of Data Miner (-6) 11373 | -7/Zion | Learned location of Extension (-4) 11460 | -7/Zion | Gained Derelict followers 11543 | -7/Zion | Found Prototype Device 11622 | -7/Zion | Identified Hacking Drone Bay 11624 | -7/Zion | Identified Mobile Refinery Mk. CCLXVII 11642 | -7/Zion | Gained Derelict followers 11743 | -7/Zion | Acquired unknown access codes intercepted by a Zionite 11919 | -7/Zion | Rebuked by Imprinter 12144 | -7/Zion | Identified exit to Proximity Caves 12150 | -7/Zion | Entered Proximity Caves 12150 | -6/Proximity Caves | Accompanied by 11 allies 12152 | -6/Proximity Caves | Attracted the attention of an 0b10 checkpoint 12702 | -6/Proximity Caves | Discovered new exit (range 11) 12714 | -6/Proximity Caves | Identified exit to Factory 12721 | -6/Proximity Caves | Entered Factory 12721 | -6/Factory | Accompanied by 8 allies 12721 | -6/Factory | Evolved 2 slots: Utility x2 12722 | -6/Factory | Identified exit to Lower Caves 12722 | -6/Factory | Identified exit to Factory 12723 | -6/Factory | Loaded intel: 78 trap records 12724 | -6/Factory | Loaded intel: 20 terminal locations 13030 | -6/Factory | Fabricated Exp. Sensor Array (x1) 13409 | -6/Factory | Discovered exit to Lower Caves (range 8) 14107 | -6/Factory | Build established: Hauler-Mutant 14899 | -6/Factory | Entered Lower Caves 15153 | -6/Lower Caves | Learned Factory terminal intel 15891 | -6/Lower Caves | Spotted B-75 Beast 15907 | -6/Lower Caves | Encountered a Warlord checkpoint 16102 | -6/Lower Caves | Discovered new exit (range 6) 16121 | -6/Lower Caves | Identified exit to Lower Caves 16141 | -6/Lower Caves | Entered another Lower Caves area 16146 | -6/Lower Caves | Ambushed by wild Derelicts 16209 | -6/Lower Caves | Discovered exit to Factory (range 13) 16243 | -6/Lower Caves | Lost 9 parts (1p4n1u3w) 16523 | -6/Lower Caves | Learned Factory security intel 16591 | -6/Lower Caves | Attracted the attention of an 0b10 checkpoint 16799 | -6/Lower Caves | Discovered new exit (range 5) 16800 | -6/Lower Caves | Encountered a Warlord checkpoint 16804 | -6/Lower Caves | Identified exit to Data Miner 16810 | -6/Lower Caves | Entered Data Miner 16810 | -6/Data Miner | Discovered new exit (range 6) 16845 | -6/Data Miner | Met Data Miner 16893 | -6/Data Miner | Acquired the access code to Warlord's prototype stash 16893 | -6/Data Miner | Learned location of Section 7 (-2) 16909 | -6/Data Miner | Received God Mode back door access code from Data Miner 16945 | -6/Data Miner | Identified exit to Proximity Caves 16947 | -6/Data Miner | Entered Proximity Caves 17156 | -5/Proximity Caves | Spotted B-75 Beast 17158 | -5/Proximity Caves | Escorted by Enhanced Grunt 17183 | -5/Proximity Caves | Allies destroyed B-75 Beast 17245 | -5/Proximity Caves | Attracted the attention of an 0b10 outpost 17413 | -5/Proximity Caves | Discovered exit to Factory (range 9) 17440 | -5/Proximity Caves | Entered Factory 17440 | -5/Factory | Accompanied by 2 allies 17440 | -5/Factory | Evolved 2 slots: Utility x2 17442 | -5/Factory | Loaded intel: 20 terminal locations 17515 | -5/Factory | Self-destructed Last Messages --------------- 17280_ Acquired 67 matter. 17284_ Acquired 14 matter. 17293_ Attempting to rewire B-60 Warrior. 17293_ B-60 Warrior rewired. 17413_ Searching scrap... 17413_ Found Hvy. Rocket Launcher. 17413_ Found Lightning Gun. 17413_ Found 20 Matter. 17413_ EXIT=FOUND: FACTORY 17416_ Acquired Hvy. Rocket Launcher. 17421_ Acquired Lightning Gun. 17426_ EAGHPA|OW|P3N